[Event "Titled Tuesday Blitz May 2 Early 2023"]
[White "Filgueira, Hernan"]
[Black "Goncalves, Davi Sulzbacher"]
[WhiteFideId "101770"]
[BlackFideId "2154510"]
[WhiteElo "2363"]
[BlackElo "2182"]
[Result "0-1"]
[Round "11"]
[TimeControl "180+2"]
[Date "2023.05.03"]
[WhiteClock "0:00:00"]
[BlackClock "0:00:00"]

1. c4 {[%clk 0:00:01]}  Nf6 {[%clk 0:00:01]} 2. Nc3 {[%clk 0:00:01]}  g6 {[%clk 0:00:01]} 3. g3 {[%clk 0:00:01]}  Bg7 {[%clk 0:00:01]} 4. Bg2 {[%clk 0:00:01]}  O-O {[%clk 0:00:01]} 5. Nf3 {[%clk 0:00:01]}  c5 {[%clk 0:00:01]} 6. O-O {[%clk 0:00:01]}  Nc6 {[%clk 0:00:01]} 7. d4 {[%clk 0:00:01]}  cxd4 {[%clk 0:00:01]} 8. Nxd4 {[%clk 0:00:01]}  d6 {[%clk 0:00:01]} 9. Nc2 {[%clk 0:00:01]}  Be6 {[%clk 0:00:01]} 10. b3 {[%clk 0:00:01]}  Qa5 {[%clk 0:00:01]} 11. Bd2 {[%clk 0:00:01]}  Qh5 {[%clk 0:00:01]} 12. e4 {[%clk 0:00:01]}  Qxd1 {[%clk 0:00:01]} 13. Raxd1 {[%clk 0:00:01]}  a6 {[%clk 0:00:01]} 14. a4 {[%clk 0:00:01]}  Na5 {[%clk 0:00:01]} 15. Rb1 {[%clk 0:00:01]}  b5 {[%clk 0:00:00]} 16. axb5 {[%clk 0:00:01]}  axb5 {[%clk 0:00:00]} 17. Nxb5 {[%clk 0:00:01]}  Nxb3 {[%clk 0:00:00]} 18. Rxb3 {[%clk 0:00:01]}  Bxc4 {[%clk 0:00:00]} 19. Rbb1 {[%clk 0:00:01]}  Bxf1 {[%clk 0:00:00]} 20. Bxf1 {[%clk 0:00:01]}  Nxe4 {[%clk 0:00:00]} 21. Be3 {[%clk 0:00:01]}  Rab8 {[%clk 0:00:00]} 22. Rd1 {[%clk 0:00:00]}  Rxb5 {[%clk 0:00:00]} 23. Bxb5 {[%clk 0:00:00]}  Nc3 {[%clk 0:00:00]} 24. Rd3 {[%clk 0:00:00]}  Nxb5 {[%clk 0:00:00]} 25. Rb3 {[%clk 0:00:00]}  Nc3 {[%clk 0:00:00]} 26. Rb7 {[%clk 0:00:00]}  Nd5 {[%clk 0:00:00]} 27. Kg2 {[%clk 0:00:00]}  Rc8 {[%clk 0:00:00]} 28. Nb4 {[%clk 0:00:00]}  Nxe3+ {[%clk 0:00:00]} 29. fxe3 {[%clk 0:00:00]}  e6 {[%clk 0:00:00]} 30. e4 {[%clk 0:00:00]}  Be5 {[%clk 0:00:00]} 31. Nd3 {[%clk 0:00:00]}  Rc4 {[%clk 0:00:00]} 32. Kf3 {[%clk 0:00:00]}  Rc3 {[%clk 0:00:00]} 33. Ke3 {[%clk 0:00:00]}  Kg7 {[%clk 0:00:00]} 34. Kd2 {[%clk 0:00:00]}  Ra3 {[%clk 0:00:00]} 35. g4 {[%clk 0:00:00]}  Bxh2 {[%clk 0:00:00]} 36. Ke3 {[%clk 0:00:00]}  Be5 {[%clk 0:00:00]} 37. Kd2 {[%clk 0:00:00]}  g5 {[%clk 0:00:00]} 38. Rb5 {[%clk 0:00:00]}  Bf4+ {[%clk 0:00:00]} 39. Ke2 {[%clk 0:00:00]}  Ra2+ {[%clk 0:00:00]} 40. Kf3 {[%clk 0:00:00]}  Ra3 {[%clk 0:00:00]} 41. Ke2 {[%clk 0:00:00]}  Kf6 {[%clk 0:00:00]} 42. Rb7 {[%clk 0:00:00]}  Ra2+ {[%clk 0:00:00]} 43. Kf3 {[%clk 0:00:00]}  Ra3 {[%clk 0:00:00]} 44. Ke2 {[%clk 0:00:00]}  Kg6 {[%clk 0:00:00]} 45. Rb8 {[%clk 0:00:00]}  d5 {[%clk 0:00:00]} 46. e5 {[%clk 0:00:00]}  Ra2+ {[%clk 0:00:00]} 47. Kf3 {[%clk 0:00:00]}  Ra3 {[%clk 0:00:00]} 48. Ke2 {[%clk 0:00:00]}  Kg7 {[%clk 0:00:00]} 49. Rb6 {[%clk 0:00:00]}  Ra4 {[%clk 0:00:00]} 50. Rb7 {[%clk 0:00:00]}  Re4+ {[%clk 0:00:00]} 51. Kf2 {[%clk 0:00:00]}  Bxe5 {[%clk 0:00:00]} 52. Kg2 {[%clk 0:00:00]}  Bd4 {[%clk 0:00:00]} 53. Rd7 {[%clk 0:00:00]}  Rxg4+ {[%clk 0:00:00]} 54. Kf3 {[%clk 0:00:00]}  Re4 {[%clk 0:00:00]} 55. Nb4 {[%clk 0:00:00]}  Bf6 {[%clk 0:00:00]} 56. Nc6 {[%clk 0:00:00]}  g4+ {[%clk 0:00:00]} 57. Kg2 {[%clk 0:00:00]}  h5 {[%clk 0:00:00]} 58. Nb8 {[%clk 0:00:00]}  h4 {[%clk 0:00:00]} 59. Rd6 {[%clk 0:00:00]}  Be5 {[%clk 0:00:00]} 60. Rb6 {[%clk 0:00:00]}  h3+ {[%clk 0:00:00]} 61. Kf1 {[%clk 0:00:00]}  h2 {[%clk 0:00:00]} 62. Kg2 {[%clk 0:00:00]}  Re2+ {[%clk 0:00:00]} 0-1


[Site "https://www.chess.com"]

[Event "Titled Tuesday Blitz May 2 Early 2023"]
[White "Omelja, Artem"]
[Black "Arkell, Keith C"]
[WhiteFideId "14119846"]
[BlackFideId "400270"]
[WhiteElo "2404"]
[BlackElo "2319"]
[Result "1-0"]
[Round "11"]
[TimeControl "180+2"]
[Date "2023.05.03"]
[WhiteClock "0:00:01"]
[BlackClock "0:00:00"]

1. Nf3 {[%clk 0:00:01]}  Nf6 {[%clk 0:00:01]} 2. g3 {[%clk 0:00:01]}  b5 {[%clk 0:00:01]} 3. Bg2 {[%clk 0:00:01]}  Bb7 {[%clk 0:00:01]} 4. O-O {[%clk 0:00:01]}  e6 {[%clk 0:00:01]} 5. a4 {[%clk 0:00:01]}  b4 {[%clk 0:00:01]} 6. d4 {[%clk 0:00:01]}  c5 {[%clk 0:00:01]} 7. a5 {[%clk 0:00:01]}  cxd4 {[%clk 0:00:01]} 8. Nxd4 {[%clk 0:00:01]}  Bxg2 {[%clk 0:00:01]} 9. Kxg2 {[%clk 0:00:01]}  Qc7 {[%clk 0:00:01]} 10. e3 {[%clk 0:00:01]}  Nc6 {[%clk 0:00:01]} 11. Qf3 {[%clk 0:00:01]}  Rc8 {[%clk 0:00:01]} 12. Nxc6 {[%clk 0:00:01]}  Qxc6 {[%clk 0:00:01]} 13. c3 {[%clk 0:00:01]}  Qxf3+ {[%clk 0:00:01]} 14. Kxf3 {[%clk 0:00:01]}  Nd5 {[%clk 0:00:01]} 15. Bd2 {[%clk 0:00:01]}  bxc3 {[%clk 0:00:01]} 16. Nxc3 {[%clk 0:00:01]}  Nxc3 {[%clk 0:00:01]} 17. Bxc3 {[%clk 0:00:01]}  Rb8 {[%clk 0:00:01]} 18. Ra4 {[%clk 0:00:01]}  d5 {[%clk 0:00:01]} 19. e4 {[%clk 0:00:01]}  dxe4+ {[%clk 0:00:01]} 20. Kxe4 {[%clk 0:00:01]}  f6 {[%clk 0:00:01]} 21. Rd1 {[%clk 0:00:01]}  Bc5 {[%clk 0:00:01]} 22. Rc4 {[%clk 0:00:01]}  f5+ {[%clk 0:00:01]} 23. Kf3 {[%clk 0:00:01]}  Be7 {[%clk 0:00:00]} 24. Rc7 {[%clk 0:00:01]}  Bf6 {[%clk 0:00:00]} 25. Bxf6 {[%clk 0:00:01]}  gxf6 {[%clk 0:00:00]} 26. Rdd7 {[%clk 0:00:01]}  Rb3+ {[%clk 0:00:00]} 27. Kg2 {[%clk 0:00:01]}  a6 {[%clk 0:00:00]} 28. Ra7 {[%clk 0:00:01]}  Rxb2 {[%clk 0:00:00]} 29. Re7+ {[%clk 0:00:01]}  Kd8 {[%clk 0:00:00]} 30. Rxe6 {[%clk 0:00:01]}  f4 {[%clk 0:00:00]} 31. Rxf6 {[%clk 0:00:01]}  fxg3 {[%clk 0:00:00]} 32. hxg3 {[%clk 0:00:01]}  h5 {[%clk 0:00:00]} 33. Rb6 {[%clk 0:00:01]}  Rxb6 {[%clk 0:00:00]} 34. axb6 {[%clk 0:00:01]}  Rh6 {[%clk 0:00:00]} 35. Ra8+ {[%clk 0:00:01]} 1-0


[Site "https://www.chess.com"]

[Event "Titled Tuesday Blitz May 2 Early 2023"]
[White "Eggink, Ryszard"]
[Black "Girya, Olga"]
[WhiteFideId "1125869"]
[BlackFideId "4195752"]
[WhiteElo "2283"]
[BlackElo "2263"]
[Result "0-1"]
[Round "11"]
[TimeControl "180+2"]
[Date "2023.05.03"]
[WhiteClock "0:00:00"]
[BlackClock "0:00:00"]

1. d4 {[%clk 0:00:01]}  Nf6 {[%clk 0:00:01]} 2. c4 {[%clk 0:00:01]}  e6 {[%clk 0:00:01]} 3. Nf3 {[%clk 0:00:01]}  d5 {[%clk 0:00:01]} 4. g3 {[%clk 0:00:01]}  Be7 {[%clk 0:00:01]} 5. Bg2 {[%clk 0:00:01]}  O-O {[%clk 0:00:01]} 6. O-O {[%clk 0:00:01]}  dxc4 {[%clk 0:00:01]} 7. Ne5 {[%clk 0:00:01]}  Nc6 {[%clk 0:00:01]} 8. Nxc6 {[%clk 0:00:01]}  bxc6 {[%clk 0:00:01]} 9. Na3 {[%clk 0:00:01]}  Bxa3 {[%clk 0:00:01]} 10. bxa3 {[%clk 0:00:01]}  Ba6 {[%clk 0:00:01]} 11. Bxc6 {[%clk 0:00:01]}  Rb8 {[%clk 0:00:01]} 12. Qa4 {[%clk 0:00:01]}  Rb6 {[%clk 0:00:01]} 13. Bd2 {[%clk 0:00:01]}  c3 {[%clk 0:00:01]} 14. Bxc3 {[%clk 0:00:01]}  Bxe2 {[%clk 0:00:01]} 15. Rfe1 {[%clk 0:00:00]}  Ra6 {[%clk 0:00:01]} 16. Ba5 {[%clk 0:00:00]}  Bh5 {[%clk 0:00:01]} 17. Qb5 {[%clk 0:00:00]}  Rxc6 {[%clk 0:00:00]} 18. Qxc6 {[%clk 0:00:00]}  Nd5 {[%clk 0:00:00]} 19. Rac1 {[%clk 0:00:00]}  Qf6 {[%clk 0:00:00]} 20. Bxc7 {[%clk 0:00:00]}  Bf3 {[%clk 0:00:00]} 21. Bd6 {[%clk 0:00:00]}  Rd8 {[%clk 0:00:00]} 22. Be5 {[%clk 0:00:00]}  Qe7 {[%clk 0:00:00]} 23. Rb1 {[%clk 0:00:00]}  h6 {[%clk 0:00:00]} 24. Rb8 {[%clk 0:00:00]}  Rxb8 {[%clk 0:00:00]} 25. Bxb8 {[%clk 0:00:00]}  Qf6 {[%clk 0:00:00]} 26. Be5 {[%clk 0:00:00]}  Qf5 {[%clk 0:00:00]} 27. Qc4 {[%clk 0:00:00]}  Qh3 {[%clk 0:00:00]} 28. Qf1 {[%clk 0:00:00]}  Qg4 {[%clk 0:00:00]} 29. h4 {[%clk 0:00:00]}  Kh7 {[%clk 0:00:00]} 30. Kh2 {[%clk 0:00:00]}  f6 {[%clk 0:00:00]} 31. Bd6 {[%clk 0:00:00]}  Qxd4 {[%clk 0:00:00]} 32. Rxe6 {[%clk 0:00:00]}  Nc3 {[%clk 0:00:00]} 33. Bb4 {[%clk 0:00:00]}  Ne4 {[%clk 0:00:00]} 34. Re7 {[%clk 0:00:00]}  Nxf2 {[%clk 0:00:00]} 35. Qb5 {[%clk 0:00:00]}  Ng4+ {[%clk 0:00:00]} 36. Kh3 {[%clk 0:00:00]}  Qf2 {[%clk 0:00:00]} 37. Qf5+ {[%clk 0:00:00]}  Kg8 {[%clk 0:00:00]} 38. Re8+ {[%clk 0:00:00]}  Kf7 {[%clk 0:00:00]} 39. Qe6+ {[%clk 0:00:00]}  Kg6 {[%clk 0:00:00]} 0-1


[Site "https://www.chess.com"]

[Event "Titled Tuesday Blitz May 2 Early 2023"]
[White "Mendez Fortes, Eduardo Jesus"]
[Black "Srebrnic, Marko"]
[WhiteFideId "3502376"]
[BlackFideId "14603616"]
[WhiteElo "2307"]
[BlackElo "2341"]
[Result "1-0"]
[Round "11"]
[TimeControl "180+2"]
[Date "2023.05.03"]
[WhiteClock "0:00:00"]
[BlackClock "0:00:00"]

1. e4 {[%clk 0:00:01]}  c5 {[%clk 0:00:01]} 2. Nf3 {[%clk 0:00:01]}  Nc6 {[%clk 0:00:01]} 3. d4 {[%clk 0:00:01]}  cxd4 {[%clk 0:00:01]} 4. Nxd4 {[%clk 0:00:01]}  e5 {[%clk 0:00:01]} 5. Nb5 {[%clk 0:00:01]}  d6 {[%clk 0:00:01]} 6. N1c3 {[%clk 0:00:01]}  a6 {[%clk 0:00:01]} 7. Na3 {[%clk 0:00:01]}  Be7 {[%clk 0:00:01]} 8. Nc4 {[%clk 0:00:01]}  b5 {[%clk 0:00:01]} 9. Ne3 {[%clk 0:00:01]}  Bb7 {[%clk 0:00:01]} 10. g3 {[%clk 0:00:01]}  h5 {[%clk 0:00:01]} 11. Bg2 {[%clk 0:00:01]}  h4 {[%clk 0:00:01]} 12. Ncd5 {[%clk 0:00:01]}  Nf6 {[%clk 0:00:01]} 13. gxh4 {[%clk 0:00:01]}  Nd4 {[%clk 0:00:01]} 14. Nxe7 {[%clk 0:00:01]}  Qxe7 {[%clk 0:00:01]} 15. c3 {[%clk 0:00:01]}  Bxe4 {[%clk 0:00:01]} 16. Bxe4 {[%clk 0:00:01]}  Nxe4 {[%clk 0:00:01]} 17. cxd4 {[%clk 0:00:01]}  Qxh4 {[%clk 0:00:01]} 18. Qf3 {[%clk 0:00:01]}  d5 {[%clk 0:00:00]} 19. Nxd5 {[%clk 0:00:01]}  O-O-O {[%clk 0:00:00]} 20. Ne3 {[%clk 0:00:01]}  exd4 {[%clk 0:00:00]} 21. Nf5 {[%clk 0:00:01]}  Qf6 {[%clk 0:00:00]} 22. O-O {[%clk 0:00:01]}  Rhe8 {[%clk 0:00:00]} 23. Kg2 {[%clk 0:00:01]}  Re5 {[%clk 0:00:00]} 24. Ng3 {[%clk 0:00:01]}  Qe6 {[%clk 0:00:00]} 25. Bf4 {[%clk 0:00:01]}  Nxg3 {[%clk 0:00:00]} 26. Bxg3 {[%clk 0:00:00]}  Rc5 {[%clk 0:00:00]} 27. Rac1 {[%clk 0:00:00]}  Rd5 {[%clk 0:00:00]} 28. b4 {[%clk 0:00:00]} 1-0


[Site "https://www.chess.com"]

[Event "Titled Tuesday Blitz May 2 Early 2023"]
[White "Pourkashiyan, Atousa"]
[Black "Orlov, Georgi"]
[WhiteFideId "12502014"]
[BlackFideId "2011271"]
[WhiteElo "2228"]
[BlackElo "2453"]
[Result "1/2-1/2"]
[Round "11"]
[TimeControl "180+2"]
[Date "2023.05.03"]
[WhiteClock "0:00:00"]
[BlackClock "0:00:00"]

1. e4 {[%clk 0:00:01]}  d6 {[%clk 0:00:01]} 2. d4 {[%clk 0:00:01]}  Nf6 {[%clk 0:00:01]} 3. Nc3 {[%clk 0:00:01]}  c6 {[%clk 0:00:01]} 4. a4 {[%clk 0:00:01]}  g6 {[%clk 0:00:01]} 5. Nf3 {[%clk 0:00:01]}  Bg7 {[%clk 0:00:01]} 6. Bc4 {[%clk 0:00:01]}  d5 {[%clk 0:00:01]} 7. exd5 {[%clk 0:00:01]}  cxd5 {[%clk 0:00:01]} 8. Bd3 {[%clk 0:00:01]}  Nc6 {[%clk 0:00:01]} 9. O-O {[%clk 0:00:01]}  Bg4 {[%clk 0:00:01]} 10. Be3 {[%clk 0:00:01]}  Qb6 {[%clk 0:00:01]} 11. h3 {[%clk 0:00:01]}  Bxf3 {[%clk 0:00:01]} 12. Qxf3 {[%clk 0:00:01]}  e6 {[%clk 0:00:01]} 13. a5 {[%clk 0:00:01]}  Nxa5 {[%clk 0:00:01]} 14. Na4 {[%clk 0:00:01]}  Qd8 {[%clk 0:00:01]} 15. Bb5+ {[%clk 0:00:00]}  Nc6 {[%clk 0:00:01]} 16. Nc5 {[%clk 0:00:00]}  Qb6 {[%clk 0:00:01]} 17. Bxc6+ {[%clk 0:00:00]}  Qxc6 {[%clk 0:00:01]} 18. Bg5 {[%clk 0:00:00]}  Ne4 {[%clk 0:00:01]} 19. Nxe4 {[%clk 0:00:00]}  dxe4 {[%clk 0:00:01]} 20. Qa3 {[%clk 0:00:00]}  f6 {[%clk 0:00:01]} 21. Bf4 {[%clk 0:00:00]}  Kf7 {[%clk 0:00:01]} 22. c4 {[%clk 0:00:00]}  Rhd8 {[%clk 0:00:01]} 23. Rfd1 {[%clk 0:00:00]}  g5 {[%clk 0:00:01]} 24. Bg3 {[%clk 0:00:00]}  Kg6 {[%clk 0:00:01]} 25. Rac1 {[%clk 0:00:00]}  a6 {[%clk 0:00:01]} 26. h4 {[%clk 0:00:00]}  Rac8 {[%clk 0:00:00]} 27. hxg5 {[%clk 0:00:00]}  fxg5 {[%clk 0:00:00]} 28. Be5 {[%clk 0:00:00]}  Bxe5 {[%clk 0:00:00]} 29. dxe5 {[%clk 0:00:00]}  Rxd1+ {[%clk 0:00:00]} 30. Rxd1 {[%clk 0:00:00]}  Qxc4 {[%clk 0:00:00]} 31. Qe7 {[%clk 0:00:00]}  e3 {[%clk 0:00:00]} 32. Qf6+ {[%clk 0:00:00]}  Kh5 {[%clk 0:00:00]} 33. Qf7+ {[%clk 0:00:00]}  Kh6 {[%clk 0:00:00]} 34. Qf6+ {[%clk 0:00:00]}  Kh5 {[%clk 0:00:00]} 35. Qf7+ {[%clk 0:00:00]}  Kh6 {[%clk 0:00:00]} 36. Qf6+ {[%clk 0:00:00]}  Kh5 {[%clk 0:00:00]} 1/2-1/2


[Site "https://www.chess.com"]

[Event "Titled Tuesday Blitz May 2 Early 2023"]
[White "Novikova, Galina"]
[Black "Gontcharov, Vladislav"]
[WhiteFideId "4157095"]
[BlackFideId "4123492"]
[WhiteElo "1953"]
[BlackElo "2420"]
[Result "0-1"]
[Round "11"]
[TimeControl "180+2"]
[Date "2023.05.03"]
[WhiteClock "0:00:00"]
[BlackClock "0:00:00"]

1. e4 {[%clk 0:00:01]}  e6 {[%clk 0:00:01]} 2. Nf3 {[%clk 0:00:01]}  d5 {[%clk 0:00:01]} 3. e5 {[%clk 0:00:01]}  c5 {[%clk 0:00:01]} 4. b4 {[%clk 0:00:01]}  cxb4 {[%clk 0:00:01]} 5. a3 {[%clk 0:00:01]}  b3 {[%clk 0:00:01]} 6. cxb3 {[%clk 0:00:01]}  Nc6 {[%clk 0:00:01]} 7. d4 {[%clk 0:00:01]}  Nge7 {[%clk 0:00:01]} 8. Bd3 {[%clk 0:00:01]}  Nf5 {[%clk 0:00:01]} 9. Bc2 {[%clk 0:00:01]}  Nh4 {[%clk 0:00:01]} 10. Be3 {[%clk 0:00:01]}  Nxg2+ {[%clk 0:00:01]} 11. Ke2 {[%clk 0:00:01]}  Nh4 {[%clk 0:00:01]} 12. Nbd2 {[%clk 0:00:01]}  Nf5 {[%clk 0:00:01]} 13. Rg1 {[%clk 0:00:01]}  g6 {[%clk 0:00:01]} 14. Bxf5 {[%clk 0:00:01]}  exf5 {[%clk 0:00:01]} 15. Bg5 {[%clk 0:00:01]}  Be7 {[%clk 0:00:01]} 16. h4 {[%clk 0:00:01]}  h6 {[%clk 0:00:01]} 17. Bxe7 {[%clk 0:00:01]}  Qxe7 {[%clk 0:00:01]} 18. b4 {[%clk 0:00:01]}  b6 {[%clk 0:00:01]} 19. Qa4 {[%clk 0:00:01]}  Bd7 {[%clk 0:00:01]} 20. Qb3 {[%clk 0:00:01]}  Qe6 {[%clk 0:00:01]} 21. Rac1 {[%clk 0:00:01]}  O-O {[%clk 0:00:01]} 22. h5 {[%clk 0:00:01]}  g5 {[%clk 0:00:01]} 23. Qe3 {[%clk 0:00:01]}  Kh8 {[%clk 0:00:00]} 24. Rg2 {[%clk 0:00:00]}  f4 {[%clk 0:00:00]} 25. Qd3 {[%clk 0:00:00]}  f6 {[%clk 0:00:00]} 26. Qg6 {[%clk 0:00:00]}  Rf7 {[%clk 0:00:00]} 27. Qxh6+ {[%clk 0:00:00]}  Rh7 {[%clk 0:00:00]} 28. Qxf6+ {[%clk 0:00:00]}  Qxf6 {[%clk 0:00:00]} 29. exf6 {[%clk 0:00:00]}  Re8+ {[%clk 0:00:00]} 30. Kf1 {[%clk 0:00:00]}  Rxh5 {[%clk 0:00:00]} 31. Rxg5 {[%clk 0:00:00]}  Rh1+ {[%clk 0:00:00]} 32. Kg2 {[%clk 0:00:00]}  Rxc1 {[%clk 0:00:00]} 33. Rh5+ {[%clk 0:00:00]}  Kg8 {[%clk 0:00:00]} 34. Ng5 {[%clk 0:00:00]}  Be6 {[%clk 0:00:00]} 35. Ndf3 {[%clk 0:00:00]}  Rf8 {[%clk 0:00:00]} 36. Nxe6 {[%clk 0:00:00]}  Rxf6 {[%clk 0:00:00]} 37. Neg5 {[%clk 0:00:00]}  Rc3 {[%clk 0:00:00]} 38. Rh4 {[%clk 0:00:00]}  Rxa3 {[%clk 0:00:00]} 39. Rg4 {[%clk 0:00:00]}  Rg6 {[%clk 0:00:00]} 40. Kh3 {[%clk 0:00:00]}  Nxd4 {[%clk 0:00:00]} 0-1


[Site "https://www.chess.com"]

[Event "Titled Tuesday Blitz May 2 Early 2023"]
[White "Nemec, Jachym"]
[Black "Danielyan, Vahe"]
[WhiteFideId "23716525"]
[BlackFideId "13304828"]
[WhiteElo "2305"]
[BlackElo "2423"]
[Result "0-1"]
[Round "11"]
[TimeControl "180+2"]
[Date "2023.05.03"]
[WhiteClock "0:00:00"]
[BlackClock "0:00:00"]

1. d4 {[%clk 0:00:01]}  d5 {[%clk 0:00:01]} 2. c4 {[%clk 0:00:01]}  e6 {[%clk 0:00:01]} 3. Nf3 {[%clk 0:00:01]}  c5 {[%clk 0:00:01]} 4. cxd5 {[%clk 0:00:01]}  exd5 {[%clk 0:00:01]} 5. Nc3 {[%clk 0:00:01]}  Nc6 {[%clk 0:00:01]} 6. g3 {[%clk 0:00:01]}  Nf6 {[%clk 0:00:01]} 7. Bg2 {[%clk 0:00:01]}  Be7 {[%clk 0:00:01]} 8. O-O {[%clk 0:00:01]}  O-O {[%clk 0:00:01]} 9. Bg5 {[%clk 0:00:01]}  c4 {[%clk 0:00:01]} 10. b3 {[%clk 0:00:01]}  Qa5 {[%clk 0:00:01]} 11. Bd2 {[%clk 0:00:01]}  Bb4 {[%clk 0:00:01]} 12. Qc2 {[%clk 0:00:01]}  Rd8 {[%clk 0:00:01]} 13. bxc4 {[%clk 0:00:01]}  dxc4 {[%clk 0:00:01]} 14. e3 {[%clk 0:00:01]}  Bf5 {[%clk 0:00:01]} 15. Qb2 {[%clk 0:00:01]}  Bd3 {[%clk 0:00:01]} 16. Rfd1 {[%clk 0:00:01]}  Rab8 {[%clk 0:00:01]} 17. Ne1 {[%clk 0:00:01]}  Bg6 {[%clk 0:00:00]} 18. a3 {[%clk 0:00:01]}  Bf8 {[%clk 0:00:00]} 19. Nb5 {[%clk 0:00:01]}  Qb6 {[%clk 0:00:00]} 20. Ra2 {[%clk 0:00:01]}  a6 {[%clk 0:00:00]} 21. Nc3 {[%clk 0:00:01]}  Qxb2 {[%clk 0:00:00]} 22. Rxb2 {[%clk 0:00:01]}  Bxa3 {[%clk 0:00:00]} 23. Rb6 {[%clk 0:00:01]}  Nd7 {[%clk 0:00:00]} 24. Rxc6 {[%clk 0:00:01]}  bxc6 {[%clk 0:00:00]} 25. Ra1 {[%clk 0:00:01]}  Rb3 {[%clk 0:00:00]} 26. Ra2 {[%clk 0:00:01]}  Bb4 {[%clk 0:00:00]} 27. Ne2 {[%clk 0:00:01]}  Bxd2 {[%clk 0:00:00]} 28. Rxd2 {[%clk 0:00:01]}  c3 {[%clk 0:00:00]} 29. Rd1 {[%clk 0:00:01]}  c2 {[%clk 0:00:00]} 30. Nxc2 {[%clk 0:00:01]}  Bxc2 {[%clk 0:00:00]} 31. Rc1 {[%clk 0:00:01]}  Bd3 {[%clk 0:00:00]} 32. Nf4 {[%clk 0:00:01]}  Bb5 {[%clk 0:00:00]} 33. Bh3 {[%clk 0:00:01]}  Nf6 {[%clk 0:00:00]} 34. Ne6 {[%clk 0:00:01]}  Rb8 {[%clk 0:00:00]} 35. Nc5 {[%clk 0:00:01]}  Rb2 {[%clk 0:00:00]} 36. e4 {[%clk 0:00:01]}  a5 {[%clk 0:00:00]} 37. e5 {[%clk 0:00:00]}  Nd5 {[%clk 0:00:00]} 38. Bg2 {[%clk 0:00:00]}  a4 {[%clk 0:00:00]} 39. Bxd5 {[%clk 0:00:00]}  cxd5 {[%clk 0:00:00]} 0-1


[Site "https://www.chess.com"]

[Event "Titled Tuesday Blitz May 2 Early 2023"]
[White "Andrews, Todd"]
[Black "Krsnik Cohar, Ivan Vihor"]
[WhiteFideId "2012456"]
[BlackFideId "14520044"]
[WhiteElo "2217"]
[BlackElo "2414"]
[Result "1/2-1/2"]
[Round "11"]
[TimeControl "180+2"]
[Date "2023.05.03"]
[WhiteClock "0:00:00"]
[BlackClock "0:00:00"]

1. e4 {[%clk 0:00:01]}  c5 {[%clk 0:00:01]} 2. Nf3 {[%clk 0:00:01]}  g6 {[%clk 0:00:01]} 3. d4 {[%clk 0:00:01]}  cxd4 {[%clk 0:00:01]} 4. Nxd4 {[%clk 0:00:01]}  Nf6 {[%clk 0:00:01]} 5. Nc3 {[%clk 0:00:01]}  Nc6 {[%clk 0:00:01]} 6. Bc4 {[%clk 0:00:01]}  Bg7 {[%clk 0:00:01]} 7. Be3 {[%clk 0:00:01]}  O-O {[%clk 0:00:01]} 8. Bb3 {[%clk 0:00:01]}  a5 {[%clk 0:00:01]} 9. Ndb5 {[%clk 0:00:01]}  a4 {[%clk 0:00:01]} 10. Nxa4 {[%clk 0:00:01]}  Qa5+ {[%clk 0:00:01]} 11. Nbc3 {[%clk 0:00:01]}  Nxe4 {[%clk 0:00:01]} 12. O-O {[%clk 0:00:01]}  Nxc3 {[%clk 0:00:01]} 13. bxc3 {[%clk 0:00:01]}  b5 {[%clk 0:00:01]} 14. Nb6 {[%clk 0:00:01]}  Rb8 {[%clk 0:00:01]} 15. Nxd7 {[%clk 0:00:01]}  Rd8 {[%clk 0:00:01]} 16. Nxb8 {[%clk 0:00:00]}  Rxd1 {[%clk 0:00:01]} 17. Raxd1 {[%clk 0:00:00]}  Nxb8 {[%clk 0:00:01]} 18. Rd2 {[%clk 0:00:00]}  Be6 {[%clk 0:00:01]} 19. Rfd1 {[%clk 0:00:00]}  Nc6 {[%clk 0:00:01]} 20. h3 {[%clk 0:00:00]}  h5 {[%clk 0:00:01]} 21. Bxe6 {[%clk 0:00:00]}  fxe6 {[%clk 0:00:01]} 22. Rd7 {[%clk 0:00:00]}  Be5 {[%clk 0:00:01]} 23. Bd4 {[%clk 0:00:00]}  Nxd4 {[%clk 0:00:00]} 24. cxd4 {[%clk 0:00:00]}  Bd6 {[%clk 0:00:00]} 25. d5 {[%clk 0:00:00]}  Qxa2 {[%clk 0:00:00]} 26. dxe6 {[%clk 0:00:00]}  Qxc2 {[%clk 0:00:00]} 27. Rd8+ {[%clk 0:00:00]}  Kg7 {[%clk 0:00:00]} 28. R1xd6 {[%clk 0:00:00]}  Qc1+ {[%clk 0:00:00]} 29. Rd1 {[%clk 0:00:00]}  Qc4 {[%clk 0:00:00]} 30. R8d7 {[%clk 0:00:00]}  Kf6 {[%clk 0:00:00]} 31. g3 {[%clk 0:00:00]}  Kxe6 {[%clk 0:00:00]} 32. Rb7 {[%clk 0:00:00]}  b4 {[%clk 0:00:00]} 33. Rb1 {[%clk 0:00:00]}  Kf6 {[%clk 0:00:00]} 34. R7xb4 {[%clk 0:00:00]}  Qc8 {[%clk 0:00:00]} 35. Rb6+ {[%clk 0:00:00]}  Kf7 {[%clk 0:00:00]} 36. Re1 {[%clk 0:00:00]}  h4 {[%clk 0:00:00]} 37. g4 {[%clk 0:00:00]}  Qc3 {[%clk 0:00:00]} 38. Rbe6 {[%clk 0:00:00]}  Qxh3 {[%clk 0:00:00]} 39. Rxe7+ {[%clk 0:00:00]}  Kf6 {[%clk 0:00:00]} 40. R7e4 {[%clk 0:00:00]}  Qd3 {[%clk 0:00:00]} 41. R1e3 {[%clk 0:00:00]}  Qd1+ {[%clk 0:00:00]} 42. Kg2 {[%clk 0:00:00]}  Kg5 {[%clk 0:00:00]} 43. Re5+ {[%clk 0:00:00]}  Kh6 {[%clk 0:00:00]} 44. R3e4 {[%clk 0:00:00]}  g5 {[%clk 0:00:00]} 45. Re6+ {[%clk 0:00:00]}  Kg7 {[%clk 0:00:00]} 46. Re7+ {[%clk 0:00:00]}  Kf8 {[%clk 0:00:00]} 47. Re8+ {[%clk 0:00:00]}  Kf7 {[%clk 0:00:00]} 48. R4e7+ {[%clk 0:00:00]}  Kf6 {[%clk 0:00:00]} 49. Re6+ {[%clk 0:00:00]}  Kf7 {[%clk 0:00:00]} 50. R8e7+ {[%clk 0:00:00]}  Kf8 {[%clk 0:00:00]} 51. Re3 {[%clk 0:00:00]}  Qxg4+ {[%clk 0:00:00]} 52. Kf1 {[%clk 0:00:00]}  h3 {[%clk 0:00:00]} 53. Rh7 {[%clk 0:00:00]}  Qg2+ {[%clk 0:00:00]} 54. Ke2 {[%clk 0:00:00]}  h2 {[%clk 0:00:00]} 55. Rd3 {[%clk 0:00:00]}  Ke8 {[%clk 0:00:00]} 56. Re3+ {[%clk 0:00:00]}  Kf8 {[%clk 0:00:00]} 57. Reh3 {[%clk 0:00:00]}  Qe4+ {[%clk 0:00:00]} 58. Kd2 {[%clk 0:00:00]}  Qd4+ {[%clk 0:00:00]} 59. Ke2 {[%clk 0:00:00]}  Qe4+ {[%clk 0:00:00]} 60. Kd2 {[%clk 0:00:00]}  Qf4+ {[%clk 0:00:00]} 61. Kc3 {[%clk 0:00:00]}  g4 {[%clk 0:00:00]} 62. Rxh2 {[%clk 0:00:00]}  Qf3+ {[%clk 0:00:00]} 63. Kd4 {[%clk 0:00:00]}  Qf4+ {[%clk 0:00:00]} 64. Kd3 {[%clk 0:00:00]}  Kg8 {[%clk 0:00:00]} 65. Rh8+ {[%clk 0:00:00]}  Kg7 {[%clk 0:00:00]} 66. R8h5 {[%clk 0:00:00]}  Kg6 {[%clk 0:00:00]} 67. Ke2 {[%clk 0:00:00]}  Qe4+ {[%clk 0:00:00]} 68. Kf1 {[%clk 0:00:00]}  Qd3+ {[%clk 0:00:00]} 69. Kg2 {[%clk 0:00:00]}  Qf3+ {[%clk 0:00:00]} 70. Kg1 {[%clk 0:00:00]}  Qd1+ {[%clk 0:00:00]} 71. Kg2 {[%clk 0:00:00]}  Qf3+ {[%clk 0:00:00]} 72. Kf1 {[%clk 0:00:00]}  Qd1+ {[%clk 0:00:00]} 73. Kg2 {[%clk 0:00:00]}  Qf3+ {[%clk 0:00:00]} 1/2-1/2


[Site "https://www.chess.com"]